bitfinex/quotes_ETHUSD_20230110
["timestamp","ask_amount","ask_price","bid_price","bid_amount"]
[1673381160462,35.44536129,1338.0,1337.7,0.16959287]
[1673381160782,27.97152129,1338.0,1337.7,0.16959287]
[1673381161775,35.40119808,1338.0,1337.7,0.16959287]
[1673381162725,47.78442511,1338.0,1337.7,0.16959287]
[1673381163091,3.79766064,1337.9,1337.7,0.14128094]
[1673381163299,22.42485,1337.8,1337.7,0.14128094]
[1673381164490,25.9123487,1337.8,1337.7,0.14128094]
[1673381164678,25.9143487,1337.8,1337.7,0.14128094]
[1673381164872,25.9123487,1337.8,1337.7,0.14128094]
[1673381165552,18.4373987,1337.8,1337.7,0.14128094]
[1673381166398,25.9123487,1337.8,1337.7,0.14128094]
[1673381169497,25.9123487,1337.8,1337.7,0.13866323]
[1673381169969,29.71000934,1337.8,1337.7,0.13866323]
[1673381170552,30.82173573,1337.8,1337.7,0.13866323]
[1673381172297,34.04932532,1337.8,1337.7,0.13866323]
[1673381172595,34.04932532,1337.8,1337.6,0.1537096]
[1673381172596,46.562578,1337.8,1337.6,0.1537096]
[1673381172786,54.68772938,1337.7,1337.6,9.6e-06]
[1673381173000,54.68772938,1337.7,1337.4,0.95613475]
[1673381173001,60.46704536,1337.7,1337.4,0.95613475]
[1673381173342,31.24052,1337.5,1337.4,0.95613475]
[1673381173528,35.26818064,1337.5,1337.4,0.95613475]
[1673381173746,40.3119613,1337.5,1337.4,0.95613475]
[1673381174231,41.42437167,1337.5,1337.4,0.95613475]
[1673381174439,43.65398723,1337.5,1337.4,0.95613475]
[1673381174682,42.73749068,1337.5,1337.4,0.95613475]
[1673381177271,41.62508031,1337.5,1337.4,0.95613475]
[1673381177481,42.73749068,1337.5,1337.4,0.95613475]
[1673381177690,41.62508031,1337.5,1337.4,0.95613475]
[1673381178012,32.81445031,1337.5,1337.4,0.95613475]
[1673381178667,32.0623313,1337.5,1337.4,0.95613475]
[1673381179940,12.52041066,1337.5,1337.4,0.95613475]
[1673381180149,24.62982037,1337.6,1337.4,0.95613475]
[1673381180396,18.94763,1337.5,1337.4,0.95613475]
[1673381180561,26.42426,1337.5,1337.4,0.95613475]
[1673381180963,33.90089,1337.5,1337.4,0.95613475]
[1673381185654,10.35773482,1337.5,1337.4,0.95613475]
[1673381185824,17.83436482,1337.5,1337.4,1.20033722]
[1673381186974,25.31099482,1337.5,1337.4,1.20033722]
[1673381188261,17.83436482,1337.5,1337.4,1.20033722]
[1673381190197,15.85536203,1337.5,1337.4,1.20033722]
[1673381191392,15.85536203,1337.5,1337.4,0.95613475]
[1673381191607,30.80862203,1337.5,1337.4,0.95613475]
[1673381192018,30.80862203,1337.5,1337.4,4.75e-06]
[1673381192234,31.9210324,1337.5,1337.4,4.75e-06]
[1673381192692,32.4820324,1337.5,1337.4,4.75e-06]
[1673381192903,39.15360619,1337.5,1337.4,4.75e-06]
[1673381193095,46.83623528,1337.5,1337.4,4.75e-06]
[1673381193305,46.83623528,1337.5,1337.1,0.68432]
[1673381193306,2.5,1337.4,1337.1,0.68432]
[1673381193494,29.91324,1337.2,1337.1,0.68432]
[1673381193868,33.71090064,1337.2,1337.1,0.68432]
[1673381194074,37.63114882,1337.2,1337.1,0.68432]
[1673381194398,2.5,1337.1,1337.0,0.16778081]
[1673381194543,26.79547064,1337.1,1337.0,0.16778081]
[1673381194751,27.02547064,1337.1,1337.0,0.16778081]
[1673381194999,27.77758965,1337.1,1337.0,0.16778081]
[1673381195216,33.34633892,1337.1,1337.0,0.11541217]
[1673381195408,37.45870112,1337.1,1336.8,0.7000862]
[1673381195779,29.91996,1336.9,1336.8,0.7000862]
[1673381195957,33.94762064,1336.9,1336.8,0.7000862]
[1673381196169,34.50892064,1336.9,1336.8,0.7000862]
[1673381196385,39.6664127,1336.9,1336.8,0.7000862]
[1673381196970,39.6664127,1336.9,1336.8,6.2e-06]
[1673381197314,2.5,1336.8,1336.7,6.4e-06]
[1673381197488,28.73931064,1336.8,1336.7,6.4e-06]
[1673381197695,60.22078623,1336.8,1336.4,0.099]
[1673381197905,14.0,1336.5,1336.3,0.1795602]
[1673381198113,28.96444,1336.5,1336.3,0.1795602]
[1673381198376,36.44666,1336.5,1336.3,0.1795602]
[1673381198588,37.00806,1336.5,1336.3,0.1795602]
[1673381198956,23.00806,1336.5,1336.3,0.1795602]
[1673381199168,7.54766,1336.6,1336.3,1.78151622]
[1673381199169,0.6274,1336.6,1336.3,1.78151622]
[1673381199414,0.5614,1336.6,1336.4,1.328]
[1673381199637,0.5613,1336.7,1336.4,1.328]
[1673381199806,7.48127,1336.7,1336.4,1.328]
[1673381200423,0.6273,1336.8,1336.4,1.328]
[1673381200668,8.042,1336.8,1336.5,3.9608]
[1673381201077,0.5613,1336.8,1336.5,3.9608]
[1673381201522,0.066,1336.9,1336.7,1.334]
[1673381201685,7.48033,1336.9,1336.7,1.334]
[1673381201895,15.02527,1337.0,1336.7,1.334]
[1673381202156,23.0002,1337.0,1336.7,1.6006]
[1673381202522,22.99779508,1337.0,1336.7,1.6006]
[1673381203188,15.51806508,1337.0,1336.7,1.6006]
[1673381203790,14.066,1337.1,1336.8,1.334]
[1673381204005,7.47943,1337.0,1336.8,1.334]
[1673381204230,21.54514,1337.1,1336.8,1.334]
[1673381204537,14.0,1337.1,1336.8,1.334]
[1673381204763,14.5612,1337.1,1336.8,1.334]
[1673381204981,22.04014,1337.1,1336.8,1.334]
[1673381205156,9.826,1337.0,1336.8,1.334]
[1673381206084,9.826,1337.0,1336.7,9.18037]
[1673381206246,24.29630464,1337.0,1336.7,0.099]
[1673381206456,16.81687464,1337.0,1336.6,18.5548]
[1673381206716,16.81687464,1337.0,1336.6,11.0733]
[1673381206717,0.5613,1336.9,1336.6,11.0733]
[1673381206921,0.5613,1336.9,1336.6,15.195111]
[1673381207144,39.88337464,1337.0,1336.6,5.552811]
[1673381207329,24.85768464,1337.0,1336.6,13.034401]
[1673381207962,29.14425064,1337.0,1336.6,13.034401]
[1673381208140,21.66447064,1337.0,1336.6,13.034401]
[1673381208345,14.18486064,1337.0,1336.6,27.997721]
[1673381208589,14.18486064,1337.0,1336.7,3.828]
[1673381208590,10.3872,1337.0,1336.7,3.828]
[1673381208800,10.3872,1337.0,1336.7,2.43137245]
[1673381208801,9.826,1337.0,1336.7,2.43137245]
[1673381209136,36.06235064,1337.0,1336.7,1.327]
[1673381209345,0.5613,1336.9,1336.7,1.327]
[1673381209519,7.48002,1336.9,1336.7,1.327]
[1673381209882,22.44006,1336.9,1336.5,17.2244]
[1673381210394,26.23772064,1336.9,1336.5,17.2244]
[1673381210555,7.48111,1336.7,1336.5,0.099]
[1673381210771,7.48111,1336.7,1336.4,1.328]
[1673381211025,7.48111,1336.7,1336.4,6.48656302]
[1673381211204,7.48111,1336.7,1336.4,6.58556302]
[1673381211414,15.02775,1336.8,1336.4,4.08556302]
[1673381211632,22.4427,1336.8,1336.4,1.328]
[1673381212271,26.24036064,1336.8,1336.3,10.2915602]
[1673381212483,3.79766064,1336.7,1336.3,9.7300602]
[1673381212705,11.27897064,1336.7,1336.3,17.2133102]
[1673381212897,20.6989917,1336.7,1336.3,17.2133102]
[1673381213391,20.6989917,1336.7,1336.3,7.7618102]
[1673381214065,28.1803017,1336.7,1336.3,0.2785602]
[1673381214277,28.1803017,1336.7,1336.3,3.1795602]
[1673381214701,13.2176817,1336.7,1336.3,10.6629002]
[1673381214867,13.2176817,1336.7,1336.3,10.7619002]
[1673381215084,1.32176817,1336.6,1336.3,3.2785602]
[1673381215305,11.30365817,1336.6,1336.3,3.1795602]
[1673381215499,16.28554817,1336.6,1336.3,3.1795602]
[1673381215949,20.08320881,1336.6,1336.3,0.1795602]
[1673381216164,12.60131881,1336.6,1336.3,0.1795602]
[1673381216375,1.26013188,1336.5,1336.3,0.1795602]
[1673381216875,5.18542881,1336.6,1336.3,0.1795602]
[1673381217098,7.61942881,1336.6,1336.3,0.1795602]
[1673381217328,15.10125881,1336.6,1336.3,0.1795602]
[1673381217541,1.51012588,1336.5,1336.3,0.1795602]
[1673381217721,1.51012588,1336.5,1336.3,7.6628702]
[1673381217911,12.66742881,1336.6,1336.3,0.2785602]
[1673381218121,35.48771106,1336.7,1336.3,7.6626602]
[1673381218378,24.2565717,1336.7,1336.3,22.7283402]
[1673381218708,46.7007117,1336.7,1336.3,0.2785602]
[1673381219013,39.2192217,1336.7,1336.3,7.6628902]
[1673381219203,39.2192217,1336.7,1336.3,7.7618902]
[1673381219411,31.7377317,1336.7,1336.3,15.2452302]
[1673381219746,24.2565717,1336.7,1336.3,18.39983922]
[1673381219963,31.7376817,1336.7,1336.3,18.39983922]
[1673381220574,31.7376817,1336.7,1336.3,12.25049922]
[1673381220786,31.7376817,1336.7,1336.3,19.73383922]
[1673381221833,46.6999017,1336.7,1336.3,4.76716922]
[1673381222161,39.2187917,1336.7,1336.3,1.5135602]
[1673381222532,46.6999017,1336.7,1336.3,1.5135602]
[1673381222993,39.2187917,1336.7,1336.3,1.5135602]
[1673381223380,39.2187917,1336.7,1336.3,0.1795602]
[1673381223851,31.7376817,1336.7,1336.3,15.1461402]
[1673381224002,31.7376817,1336.7,1336.3,15.2451402]
[1673381224003,39.2187917,1336.7,1336.3,15.2451402]
[1673381224216,29.79897064,1336.7,1336.3,18.98539722]
[1673381224423,0.6273,1336.8,1336.4,1.334]
[1673381224755,0.5613,1336.8,1336.5,29.92862]
[1673381224998,32.9498,1336.9,1336.5,30.02762]
[1673381225160,0.5613,1336.9,1336.5,33.82236129]
[1673381225374,10.4532,1337.0,1336.8,1.332]
[1673381225588,10.3872,1337.0,1336.8,1.332]
[1673381225841,9.826,1337.0,1336.8,8.8125]
[1673381225998,9.826,1337.0,1336.8,8.9115]
[1673381226205,9.826,1337.0,1336.8,1.431]
[1673381226417,9.826,1337.0,1336.8,16.29302]
[1673381226677,9.826,1337.0,1336.8,16.39202]
[1673381227079,9.826,1337.0,1336.8,17.3567982]
[1673381227271,9.826,1337.0,1336.8,24.8373482]
[1673381228468,9.826,1337.0,1336.9,1.334]
[1673381228654,9.826,1337.0,1336.9,23.77397]
[1673381228848,9.826,1337.0,1336.9,16.39298]
[1673381229056,9.826,1337.0,1336.9,18.79923702]
[1673381229691,8.71230984,1337.0,1336.9,18.79923702]
[1673381230836,8.71230984,1337.0,1336.9,26.27922702]
[1673381231581,8.71230984,1337.0,1336.9,18.79923702]
[1673381232884,8.71230984,1337.0,1336.9,26.27922702]
[1673381233460,8.71230984,1337.0,1336.9,18.79923702]
[1673381233670,8.71230984,1337.0,1336.9,27.60822702]
[1673381235090,8.71230984,1337.0,1336.9,20.12823702]
[1673381235304,8.71230984,1337.0,1336.9,5.16825702]
[1673381235613,8.71230984,1337.0,1336.9,3.83425702]
[1673381235824,8.71230984,1337.0,1336.9,1.329]
[1673381237500,6.73256549,1337.0,1336.9,1.329]
[1673381237711,6.73256549,1337.0,1336.9,3.829]
[1673381238977,6.73256549,1337.0,1336.9,1.329]
[1673381242553,14.21199549,1337.0,1336.9,1.329]
[1673381242717,6.73256549,1337.0,1336.9,1.329]
[1673381242927,32.09444504,1337.0,1336.8,1.431]
[1673381243139,32.09444504,1337.0,1336.7,11.2534]
[1673381243367,33.20578992,1337.0,1336.7,11.2534]
[1673381243628,34.87280724,1337.0,1336.7,11.2534]
[1673381243792,7.48055,1336.8,1336.7,11.2534]
[1673381244000,7.48055,1336.8,1336.7,1.433]
[1673381244239,7.48055,1336.8,1336.7,1.334]
[1673381245064,22.50699,1336.9,1336.7,1.334]
[1673381245279,22.44099,1336.9,1336.7,1.334]
[1673381246353,7.48016,1336.9,1336.7,1.334]
[1673381246558,7.48016,1336.9,1336.6,1.334]
[1673381246917,14.96063,1336.9,1336.6,1.334]
[1673381247317,14.96063,1336.9,1336.6,3.946319]
[1673381247722,23.55244488,1336.9,1336.5,11.1532]
[1673381248371,25.2194622,1336.9,1336.5,11.1532]
[1673381248595,1.67264488,1336.8,1336.5,9.8252]
[1673381248791,25.11059449,1336.7,1336.5,0.099]
[1673381248998,22.61059449,1336.7,1336.4,1.334]
[1673381250292,23.72193937,1336.7,1336.4,1.334]
[1673381250504,22.61059449,1336.7,1336.4,1.334]
[1673381252557,23.72193937,1336.7,1336.4,1.334]
[1673381252800,14.96444,1336.5,1336.4,1.334]
[1673381253660,7.48222,1336.5,1336.4,1.334]
[1673381253979,7.54796,1336.6,1336.4,1.334]
[1673381254198,8.8423,1336.7,1336.5,1.328]
[1673381254348,8.7763,1336.7,1336.5,1.328]
[1673381255018,9.0864,1336.8,1336.5,1.328]
[1673381255188,18.11419812,1336.8,1336.5,1.328]
[1673381255396,9.0204,1336.8,1336.5,1.328]
[1673381255653,25.06182488,1336.9,1336.6,1.334]
[1673381255867,25.06182488,1336.9,1336.7,1.334]
[1673381255868,31.91505488,1336.9,1336.7,1.334]
[1673381256200,23.32318,1336.9,1336.7,1.334]
[1673381256395,14.96038,1336.9,1336.7,1.334]
[1673381257755,14.96038,1336.9,1336.7,1.33193712]
[1673381260070,16.07172488,1336.9,1336.7,1.33193712]
[1673381260391,14.96038,1336.9,1336.7,1.33193712]
[1673381260596,14.96038,1336.9,1336.7,1.85843083]
[1673381260817,25.22102037,1337.0,1336.7,1.86049371]
[1673381260973,17.11431037,1337.0,1336.7,16.82228371]
[1673381261180,17.11431037,1337.0,1336.8,1.334]
[1673381261493,7.84391037,1337.0,1336.8,3.834]
[1673381261708,7.84391037,1337.0,1336.8,5.02802237]
[1673381261921,7.84391037,1337.0,1336.8,5.12702237]
[1673381262389,7.84391037,1337.0,1336.8,2.62702237]
[1673381262544,7.84391037,1337.0,1336.8,2.52802237]
[1673381262751,7.84391037,1337.0,1336.8,1.19402237]
[1673381263210,7.84391037,1337.0,1336.8,3.69402237]
[1673381263830,7.84391037,1337.0,1336.8,1.19402237]
[1673381264482,7.84391037,1337.0,1336.7,1.95349371]
[1673381264698,16.99050769,1337.0,1336.7,0.52649371]
[1673381265010,24.47008769,1337.0,1336.7,0.52649371]
[1673381266454,22.80307037,1337.0,1336.7,0.52649371]
[1673381267608,22.80307037,1337.0,1336.6,18.89579]
[1673381268293,24.47008769,1337.0,1336.6,18.89579]
[1673381268873,22.80307037,1337.0,1336.6,18.89579]
[1673381269085,24.47008769,1337.0,1336.6,18.89579]
[1673381269402,22.80307037,1337.0,1336.6,18.89579]
[1673381270025,22.80307037,1337.0,1336.6,23.284511]
[1673381270461,24.47008769,1337.0,1336.6,15.803081]
[1673381270677,22.80307037,1337.0,1336.6,15.803081]
[1673381270882,22.80307037,1337.0,1336.6,8.321721]
[1673381271098,24.47008769,1337.0,1336.6,5.821721]
[1673381271305,1.11134488,1336.9,1336.6,5.821721]
[1673381271520,32.01566769,1337.0,1336.7,0.5821721]
[1673381271839,31.94966769,1337.0,1336.6,8.321721]
[1673381272459,31.94966769,1337.0,1336.6,14.469361]
[1673381273287,24.47008769,1337.0,1336.6,14.469361]
[1673381274279,1.11134488,1336.9,1336.6,6.987721]
[1673381275112,32.01605769,1337.0,1336.6,14.469221]
[1673381275277,32.01605769,1337.0,1336.7,3.9469221]
[1673381275278,16.99050769,1337.0,1336.7,3.9469221]
[1673381276121,15.32349037,1337.0,1336.7,11.4280221]
[1673381276366,16.99050769,1337.0,1336.7,11.5270221]
[1673381276806,16.99050769,1337.0,1336.7,4.0459221]
[1673381276962,7.84391037,1337.0,1336.7,3.9469221]
[1673381277173,6.73256549,1337.0,1336.8,1.72869221]
[1673381277422,6.73256549,1337.0,1336.9,22.43997]
[1673381277636,6.73256549,1337.0,1336.9,22.53897]
[1673381278471,6.73256549,1337.0,1336.9,23.87297]
[1673381278643,6.73256549,1337.0,1336.9,27.18114922]
[1673381279275,6.73256549,1337.0,1336.9,19.70115922]
[1673381280148,6.73256549,1337.0,1336.9,27.18114922]
[1673381280361,6.73256549,1337.0,1336.9,27.1783796]
[1673381280566,6.73256549,1337.0,1336.9,19.6983896]
[1673381280779,6.73256549,1337.0,1336.9,16.39021038]
[1673381282740,6.73256549,1337.0,1336.9,23.87020038]
[1673381283376,6.73256549,1337.0,1336.9,16.39021038]
[1673381283635,6.73256549,1337.0,1336.9,23.87020038]
[1673381283799,6.73256549,1337.0,1336.9,16.39021038]
[1673381285533,6.73256549,1337.0,1336.9,7.57622038]
[1673381287413,6.73256549,1337.0,1336.9,0.099]
[1673381287630,6.73256549,1337.0,1336.8,16.39314]
[1673381287800,6.73256549,1337.0,1336.8,8.913]
[1673381288257,6.73256549,1337.0,1336.8,16.39355]
[1673381288579,6.73256549,1337.0,1336.8,1.433]
[1673381288770,6.73256549,1337.0,1336.8,1.334]
[1673381289195,7.84391037,1337.0,1336.8,8.81442]
[1673381289403,7.84391037,1337.0,1336.8,12.20736021]
[1673381289941,7.84391037,1337.0,1336.8,4.72694021]
[1673381290173,6.73256549,1337.0,1336.8,19.58883021]
[1673381290373,6.73256549,1337.0,1336.8,27.16838021]
[1673381290870,6.73256549,1337.0,1336.8,25.83438021]
[1673381291211,6.73256549,1337.0,1336.9,26.95237904]
[1673381291430,6.73256549,1337.0,1336.9,25.03897]
[1673381291732,6.73256549,1337.0,1336.9,22.53897]
[1673381294512,6.73256549,1337.0,1336.9,7.57899]
[1673381296129,7.84391037,1337.0,1336.9,0.099]
[1673381296302,7.84391037,1337.0,1336.8,19.68762021]
[1673381296303,6.73256549,1337.0,1336.8,19.68762021]
[1673381297608,7.84391037,1337.0,1336.8,19.68762021]
[1673381298654,1.11604733,1336.9,1336.8,27.16817021]
[1673381298863,1.11604733,1336.9,1336.8,29.02429676]
[1673381299681,1.11604733,1336.9,1336.8,27.16817021]
[1673381301047,1.11604733,1336.9,1336.8,29.02433437]
[1673381301708,7.90991037,1337.0,1336.9,2.40966521]
[1673381301906,6.73256549,1337.0,1336.9,2.40966521]
[1673381302125,6.73256549,1337.0,1336.9,17.36964521]
[1673381302330,6.73256549,1337.0,1336.9,10.59801839]
[1673381302559,6.73256549,1337.0,1336.9,30.08029585]
[1673381304720,6.73256549,1337.0,1336.9,31.9363179]
[1673381305688,6.73256549,1337.0,1336.9,35.71743422]
[1673381305922,6.73256549,1337.0,1336.9,48.64949412]
[1673381306124,6.73256549,1337.0,1336.9,51.43368863]
[1673381306338,6.73256549,1337.0,1336.9,57.15665851]
[1673381306879,6.73256549,1337.0,1336.9,49.67666851]
[1673381307188,6.73256549,1337.0,1336.9,45.89555219]
[1673381307366,6.73256549,1337.0,1336.9,48.55679206]
[1673381308134,6.73256549,1337.0,1336.9,44.7771616]
[1673381308355,6.73256549,1337.0,1336.9,48.55827792]
[1673381309806,6.73256549,1337.0,1336.9,44.7771616]
[1673381310864,6.73256549,1337.0,1336.9,43.4431616]
[1673381311893,6.73256549,1337.0,1336.9,48.34234782]
[1673381312343,6.73256549,1337.0,1336.9,47.22427792]
[1673381312562,6.73256549,1337.0,1336.9,48.34234782]
[1673381314224,6.73256549,1337.0,1336.9,47.22427792]
[1673381314433,6.73256549,1337.0,1336.9,48.34234782]
[1673381314896,6.73256549,1337.0,1336.9,44.5612315]
[1673381315045,6.73256549,1337.0,1336.9,48.34234782]
[1673381315522,6.73256549,1337.0,1336.9,44.5612315]
[1673381315890,6.73256549,1337.0,1336.9,48.34234782]
[1673381316363,6.73256549,1337.0,1336.9,49.67634782]
[1673381318203,0.066,1337.1,1337.0,2.5]
[1673381318414,11.6629622,1337.4,1337.0,24.53178711]
[1673381318680,11.5969622,1337.4,1337.3,25.05725]
[1673381318852,11.5969622,1337.4,1337.3,25.15625]
[1673381318853,2.7783622,1337.4,1337.3,25.15625]
[1673381319057,1.11134488,1337.4,1337.3,28.95391064]
[1673381319277,2.89342607,1337.5,1337.3,28.95391064]
[1673381319518,1.71608119,1337.5,1337.4,3.79766064]
[1673381319681,1.16485839,1337.5,1337.4,28.88523064]
[1673381319887,1.16485839,1337.5,1337.4,28.98423064]
[1673381320960,1.16485839,1337.5,1337.4,25.18657]
[1673381321206,1.16485839,1337.5,1337.4,0.099]
[1673381321365,1.71608119,1337.5,1337.3,4.332]
[1673381321782,1.11525019,1337.4,1337.3,4.332]
[1673381323017,1.11525019,1337.4,1337.3,3.0]
[1673381324415,1.11525019,1337.4,1337.3,17.9555]
[1673381324647,1.11525019,1337.4,1337.3,18.0545]
[1673381325473,1.11525019,1337.4,1337.3,25.53225]
[1673381325881,1.11525019,1337.4,1337.3,29.32991064]
[1673381326364,1.11525019,1337.4,1337.3,14.37441064]
[1673381326731,2.78226751,1337.4,1337.3,14.37441064]
[1673381327213,1.11525019,1337.4,1337.3,14.37441064]
[1673381327393,1.11525019,1337.4,1337.3,11.37441064]
[1673381327600,1.23031406,1337.5,1337.3,26.32991064]
[1673381327836,2.83133138,1337.5,1337.4,11.27485064]
[1673381327987,2.83133138,1337.5,1337.4,11.37385064]
[1673381328954,2.83133138,1337.5,1337.4,18.85104064]
[1673381329291,2.83133138,1337.5,1337.4,26.32823064]
[1673381329292,1.16431406,1337.5,1337.4,26.32823064]
[1673381332850,0.04906387,1337.5,1337.4,26.32823064]
[1673381334398,1.16431406,1337.5,1337.4,26.32823064]
[1673381335495,1.16431406,1337.5,1337.4,18.85104064]
[1673381335723,10.30796138,1337.5,1337.4,0.099]
[1673381335868,10.30796138,1337.5,1337.3,0.03267854]
[1673381335869,3.93877095,1337.5,1337.3,0.03267854]
[1673381336073,3.93877095,1337.5,1337.3,7.51015854]
[1673381336074,1.11449659,1337.4,1337.3,7.51015854]
[1673381336284,1.11449659,1337.4,1337.3,15.08690854]
[1673381336577,1.11449659,1337.4,1337.3,22.56465854]
[1673381337486,1.1123881,1337.4,1337.3,22.56465854]
[1673381337701,1.1123881,1337.4,1337.3,15.08690854]
[1673381338239,2.77940542,1337.4,1337.3,15.08690854]
[1673381338404,2.77940542,1337.4,1337.3,22.56465854]
[1673381338614,1.1123881,1337.4,1337.3,22.56465854]
[1673381339398,2.77940542,1337.4,1337.3,22.56465854]
[1673381339586,2.77940542,1337.4,1337.3,15.08690854]
[1673381340339,2.77940542,1337.4,1337.3,7.60915854]
[1673381340743,1.66701732,1337.4,1337.3,7.60915854]
[1673381341131,1.66701732,1337.4,1337.3,15.08690854]
[1673381341343,3.88970708,1337.4,1337.3,15.08690854]
[1673381341900,1.66701732,1337.4,1337.3,15.08690854]
[1673381342236,1.66701732,1337.4,1337.3,22.56465854]
[1673381342825,1.78208119,1337.5,1337.3,22.56465854]
[1673381343037,1.71608119,1337.5,1337.3,22.56465854]
[1673381343383,3.93877095,1337.5,1337.3,22.56465854]
[1673381343987,3.93877095,1337.5,1337.3,15.08690854]
[1673381344390,1.66701732,1337.4,1337.3,15.08690854]
[1673381344644,1.66701732,1337.4,1337.3,22.56465854]
[1673381345264,1.66701732,1337.4,1337.3,26.36231918]
[1673381345438,4.00477095,1337.5,1337.3,26.36231918]
[1673381345650,3.93877095,1337.5,1337.3,26.36231918]
[1673381347586,1.11579549,1337.4,1337.3,26.36231918]
[1673381347747,0.05,1337.5,1337.4,2.5]
[1673381347962,0.05,1337.5,1337.3,26.36231918]
[1673381347963,0.014,1337.5,1337.3,26.36231918]
[1673381348226,2.5,1337.8,1337.3,26.36231918]
[1673381348462,3.87855,1337.8,1337.3,30.63306742]
[1673381348632,2.54455,1337.8,1337.3,31.96706742]
[1673381350485,10.83725,1337.8,1337.3,31.96706742]
[1673381351657,8.33725,1337.8,1337.3,31.96706742]
[1673381353251,8.33725,1337.8,1337.4,8.06840888]
[1673381353429,8.2927,1337.8,1337.6,22.42821]
[1673381353634,0.066,1337.9,1337.6,22.52721]
[1673381353883,3.34898994,1337.9,1337.6,22.52721]
[1673381354684,2.79002211,1337.8,1337.6,22.52721]
[1673381355896,2.23249693,1337.7,1337.6,22.52721]
[1673381356107,2.79002211,1337.8,1337.6,22.52721]
[1673381356108,5.08851904,1337.8,1337.6,22.52721]
[1673381356275,5.02251904,1337.8,1337.6,22.5567776]
[1673381356838,1.67410922,1337.7,1337.6,22.5567776]
[1673381357028,3.90660615,1337.7,1337.6,22.5567776]
[1673381359522,3.90660615,1337.7,1337.6,26.35443824]
[1673381359726,3.90660615,1337.7,1337.6,31.95875814]
[1673381359727,1.11612386,1337.7,1337.6,31.95875814]
[1673381360298,3.97260615,1337.8,1337.6,31.95875814]
[1673381360299,2.85623308,1337.8,1337.6,31.95875814]
[1673381360478,2.79023308,1337.8,1337.7,3.79766064]
[1673381360712,2.79023308,1337.8,1337.7,26.22419064]
[1673381360899,2.79023308,1337.8,1337.7,26.32319064]
[1673381361321,3.16223308,1337.8,1337.7,26.32319064]
[1673381361518,1.48812386,1337.8,1337.7,26.32319064]
[1673381364774,0.372,1337.8,1337.7,26.32319064]
[1673381366560,0.372,1337.8,1337.7,31.92666337]
[1673381366816,0.372,1337.8,1337.7,27.65719064]
[1673381367609,1.48812386,1337.8,1337.7,18.84768064]
[1673381368045,1.48812386,1337.8,1337.7,3.89666064]
[1673381368302,1.48812386,1337.8,1337.7,3.79766064]
[1673381369199,1.48812386,1337.8,1337.7,11.27317064]
[1673381369415,1.48812386,1337.8,1337.7,3.89666064]
[1673381369631,3.16223308,1337.8,1337.6,7.6042176]
[1673381369862,3.16223308,1337.8,1337.6,11.40187824]
[1673381370073,1.48812386,1337.8,1337.6,11.40187824]
[1673381370394,1.48812386,1337.8,1337.6,18.87794824]
[1673381370567,1.48812386,1337.8,1337.6,26.35401824]
[1673381370786,3.16223308,1337.8,1337.6,26.35401824]
[1673381370968,1.48812386,1337.8,1337.6,26.35401824]
[1673381371445,3.16223308,1337.8,1337.6,26.35401824]
[1673381371813,1.48812386,1337.8,1337.6,26.35401824]
[1673381372649,1.48812386,1337.8,1337.6,26.35023545]
[1673381373283,0.372,1337.8,1337.6,26.35023545]
[1673381374068,1.48812386,1337.8,1337.6,26.35023545]
[1673381374380,1.48812386,1337.8,1337.7,24.92653]
[1673381374573,0.372,1337.8,1337.7,25.02553]
[1673381375193,0.372,1337.8,1337.7,6.39666064]
[1673381375530,0.372,1337.8,1337.7,28.82319064]
[1673381377972,0.372,1337.8,1337.7,26.32319064]
[1673381378603,0.374,1337.8,1337.7,26.32019064]
[1673381378758,0.372,1337.8,1337.7,26.32319064]
[1673381381068,0.372,1337.8,1337.7,30.59266098]
[1673381381284,1e-08,1337.8,1337.7,31.92666098]
[1673381381604,1e-08,1337.8,1337.7,27.65719064]
[1673381381813,1e-08,1337.8,1337.7,26.32319064]
[1673381384131,1e-08,1337.8,1337.7,11.37217064]
[1673381384343,1e-08,1337.8,1337.7,3.89666064]
[1673381384602,1e-08,1337.8,1337.7,3.79766064]
[1673381385325,1e-08,1337.8,1337.7,11.27317064]
[1673381385541,1.11612387,1337.8,1337.7,3.89666064]
[1673381385858,1.11612387,1337.8,1337.7,3.79766064]
[1673381386341,1.11612387,1337.8,1337.7,11.27317064]
[1673381386548,1.11612387,1337.8,1337.7,26.32319064]
[1673381386549,1e-08,1337.8,1337.7,26.32319064]
[1673381387800,1.11612387,1337.8,1337.7,26.32319064]
[1673381388130,1e-08,1337.8,1337.7,26.32319064]
[1673381388905,1e-08,1337.8,1337.7,30.59308738]
[1673381389074,1e-08,1337.8,1337.7,30.59266164]
[1673381389425,1.18212386,1338.0,1337.8,0.00199999]
[1673381389616,1.11612386,1338.0,1337.9,22.4232]
[1673381389834,1.11612386,1338.0,1337.9,22.5222]
[1673381390011,2.89823308,1338.0,1337.9,22.5222]
[1673381391072,1.78210922,1338.0,1337.9,22.5222]
[1673381392475,4.01460615,1338.0,1337.9,22.5222]
[1673381392689,4.01460615,1338.0,1337.9,15.0478]
[1673381393366,1.78210922,1338.0,1337.9,15.0478]
[1673381394892,4.01460615,1338.0,1337.9,15.0478]
[1673381395468,1.78210922,1338.0,1337.9,15.0478]
[1673381395788,4.01460615,1338.0,1337.9,15.0478]
[1673381396242,1.78210922,1338.0,1337.9,15.0478]
[1673381396468,4.01460615,1338.0,1337.9,15.0478]
[1673381398530,4.01555167,1338.0,1337.9,15.0478]
[1673381398739,2.34049693,1338.0,1337.9,15.0478]
[1673381399709,4.01546443,1338.0,1337.9,15.0478]
[1673381401715,1.7829675,1338.0,1337.9,15.0478]
[1673381402084,4.01546443,1338.0,1337.9,15.0478]
[1673381402292,1.7829675,1338.0,1337.9,15.0478]
[1673381402954,4.01546443,1338.0,1337.9,15.0478]
[1673381403360,1.7829675,1338.0,1337.9,15.0478]
[1673381403716,2.34049693,1338.0,1337.9,15.0478]
[1673381403907,4.01541149,1338.0,1337.9,15.0478]
[1673381404459,4.01535084,1338.0,1337.9,15.0478]
[1673381405036,4.01535084,1338.0,1337.9,0.099]
[1673381405291,4.01535084,1338.0,1337.8,20.45637548]
[1673381405292,5.13051904,1338.0,1337.8,3.92485548]
[1673381405606,5.13051904,1338.0,1337.8,0.00199999]
[1673381405607,3.9069213,1337.9,1337.8,0.00199999]
[1673381405765,5.02251904,1337.9,1337.8,0.00199999]
[1673381405973,5.29002211,1337.9,1337.8,0.00199999]
[1673381406452,7.52229831,1337.9,1337.8,0.00199999]